bitfinex-derivatives/quotes_SOLF0:USTF0_20220109
["timestamp","ask_amount","ask_price","bid_price","bid_amount"]
[1641697838834,35.41868511,143.21,143.13,61.8185]
[1641697839635,33.13579,143.21,143.13,61.8185]
[1641697841137,42.46675456,143.24,143.13,72.8032035]
[1641697841339,14.80196456,143.24,143.14,4.0]
[1641697841538,14.80196456,143.25,143.15,4.0]
[1641697841736,14.80196456,143.25,143.16,4.0]
[1641697842138,14.80196456,143.25,143.17,4.0]
[1641697842541,14.80196456,143.25,143.22,27.66479]
[1641697842942,2.28334695,143.28,143.22,27.66479]
[1641697843140,6.28334695,143.28,143.19,94.13559]
[1641697843342,4.0,143.27,143.19,66.4708]
[1641697843542,4.0,143.27,143.17,2.64864445]
[1641697843741,69.4104,143.27,143.15,65.8507]
[1641697843941,65.4104,143.27,143.16,6.9829964]
[1641697844143,69.4104,143.27,143.16,6.9829964]
[1641697844342,65.4104,143.27,143.16,6.9829964]
[1641697844543,97.07519,143.27,143.17,27.66479]
[1641697844744,97.07519,143.27,143.17,30.31023258]
[1641697845043,93.07519,143.27,143.17,30.31023258]
[1641697845643,65.4104,143.27,143.17,27.66479]
[1641697846543,65.4104,143.27,143.2,27.66479]
[1641697852152,69.4104,143.27,143.17,27.66479]
[1641697852353,75.5244,143.27,143.17,27.66479]
[1641697852753,27.66479,143.25,143.17,27.66479]
[1641697854855,71.5244,143.27,143.17,27.66479]
[1641697855857,6.114,143.27,143.17,31.66479]
[1641697856057,21.78593634,143.3,143.17,31.66479]
[1641697856260,14.80196456,143.3,143.19,6.98177756]
[1641697856457,14.80196456,143.3,143.2,59.9041]
[1641697856659,14.80196456,143.3,143.22,27.66479]
[1641697857058,2.281887,143.31,143.22,27.66479]
[1641697858758,2.281887,143.31,143.22,55.32958]
[1641697858958,2.281887,143.31,143.22,61.84058]
[1641697859159,2.281887,143.31,143.23,9.62810251]
[1641697859360,2.281887,143.31,143.23,13.62810251]
[1641697860162,62.550087,143.34,143.24,2.6485178]
[1641697860361,62.550087,143.34,143.24,63.9269178]
[1641697860862,2.281887,143.34,143.27,27.66479]
[1641697861064,39.24154917,143.38,143.33,10.97471665]
[1641697861262,39.24154917,143.38,143.33,15.58171665]
[1641697862462,9.36185944,143.44,143.33,15.58171665]
[1641697862663,9.36185944,143.44,143.33,19.58171665]
[1641697862862,9.36185944,143.44,143.38,27.66479]
[1641697863864,66.90633917,143.48,143.38,27.66479]
[1641697864063,66.90633917,143.48,143.38,88.27359]
[1641697865567,27.66479,143.48,143.38,88.27359]
[1641697866267,27.66479,143.48,143.39,6.97204211]
[1641697866867,27.66479,143.48,143.41,27.66479]
[1641697867069,63.2548,143.49,143.41,36.07179]
[1641697867568,27.66479,143.51,143.41,36.07179]
[1641697867769,128.24154917,143.55,143.46,6.96864111]
[1641697867972,89.0,143.55,143.46,13.06164111]
[1641697868169,89.0,143.55,143.46,17.06164111]
[1641697868370,89.0,143.55,143.46,13.06164111]
[1641697868572,89.0,143.55,143.46,17.06164111]
[1641697868772,27.66479,143.56,143.49,6.96718456]
[1641697869173,27.66479,143.56,143.5,4.0]
[1641697869572,27.66479,143.56,143.49,6.96718456]
[1641697869974,27.66479,143.56,143.48,27.66479]
[1641697870975,27.66479,143.56,143.48,34.63246001]
[1641697872375,27.66479,143.56,143.48,27.66479]
[1641697872575,35.74679,143.56,143.48,27.66479]
[1641697873074,4.0,143.52,143.48,27.66479]
[1641697873277,12.444,143.52,143.42,130.9920412]
[1641697873475,4.0,143.51,143.42,6.9703412]
[1641697873678,12.444,143.52,143.42,6.9703412]
[1641697874676,12.444,143.52,143.4,61.7173]
[1641697875078,27.66479,143.5,143.41,27.66479]
[1641697880787,36.28579,143.5,143.41,27.66479]
[1641697881889,4.0,143.49,143.41,27.66479]
[1641697882089,36.28579,143.5,143.41,27.66479]
[1641697883092,4.0,143.44,143.34,1.742]
[1641697883290,27.66479,143.43,143.35,27.66479]
[1641697884091,27.66479,143.43,143.31,63.26673303]
[1641697885194,27.66479,143.43,143.32,27.66479]
[1641697891412,31.66479,143.43,143.32,27.66479]
[1641697891611,4.0,143.42,143.32,27.66479]
[1641697891809,10.283,143.42,143.31,6.97593303]
[1641697892212,4.0,143.41,143.31,6.97593303]
[1641697892410,10.283,143.42,143.31,6.97593303]
[1641697892614,6.283,143.42,143.31,6.97593303]
[1641697892811,31.66479,143.43,143.31,6.97593303]
[1641697893213,27.66479,143.39,143.3,27.66479]
[1641697893411,36.09579,143.39,143.3,27.66479]
[1641697894213,4.0,143.38,143.3,27.66479]
[1641697894814,40.09579,143.39,143.3,27.66479]
[1641697895213,4.0,143.38,143.3,27.66479]
[1641697895413,36.09579,143.39,143.3,27.66479]
[1641697895813,36.09579,143.39,143.28,6.97739325]
[1641697896413,40.09579,143.39,143.28,6.97739325]
[1641697896812,4.0,143.38,143.28,6.97739325]
[1641697897013,36.09579,143.39,143.28,6.97739325]
[1641697897214,4.0,143.34,143.24,88.49749]
[1641697897414,6.625,143.34,143.24,27.66479]
[1641697897612,4.0,143.31,143.22,87.90059]
[1641697897815,11.006,143.31,143.22,27.66479]
[1641697899316,27.66479,143.3,143.22,27.66479]
[1641697900517,31.66479,143.3,143.19,58.9607]
[1641697900716,27.66479,143.3,143.18,34.6468113]
[1641697900917,4.0,143.29,143.18,34.6468113]
[1641697901418,4.0,143.28,143.18,34.6468113]
[1641697901619,11.79,143.28,143.18,34.6468113]
[1641697902718,7.79,143.28,143.18,34.6468113]
[1641697903318,27.66479,143.27,143.18,34.6468113]
[1641697906122,4.0,143.26,143.18,34.6468113]
[1641697906621,4.0,143.26,143.18,6.9820213]
[1641697909924,4.0,143.23,143.18,6.9820213]
[1641697910124,4.0,143.19,143.13,6.98445958]
[1641697910426,7.125,143.19,143.13,6.98445958]
[1641697910631,11.125,143.19,143.13,6.98445958]
[1641697910825,7.125,143.19,143.13,6.98445958]
[1641697911930,4.0,143.16,143.13,6.98445958]
[1641697912131,4.0,143.14,143.03,6.98934125]
[1641697912330,5.909,143.16,143.03,67.54514125]
[1641697912529,5.909,143.16,143.03,60.5558]
[1641697913430,33.57379,143.16,143.07,27.66479]
[1641697913834,37.57379,143.16,143.07,27.66479]
[1641697914032,4.0,143.12,143.05,27.66479]
[1641697914242,8.179,143.12,143.04,2.63612115]
[1641697914437,9.926,143.12,143.04,2.63612115]
[1641697914638,4.0,143.11,142.99,6.99154024]
[1641697914837,8.179,143.12,142.99,6.99154024]
[1641697915038,12.179,143.12,142.99,6.99154024]
[1641697915237,4.0,143.11,142.99,6.99154024]
[1641697915436,27.66479,143.09,143.02,27.66479]
[1641697915637,35.74779,143.09,143.02,27.66479]
[1641697916538,35.74779,143.09,143.03,6.98958552]
[1641697916539,27.66479,143.09,143.03,6.98958552]
[1641697916736,6.99129584,143.15,143.03,14.90358552]
[1641697917137,31.66479,143.16,143.03,7.914]
[1641697917340,4.0,143.15,143.03,7.914]
[1641697917537,27.66479,143.13,143.05,27.66479]
[1641697919140,8.73854024,143.15,143.05,27.66479]
[1641697919340,27.66479,143.16,143.05,33.39379]
[1641697919642,27.66479,143.17,143.05,61.05858]
[1641697919843,6.98909701,143.2,143.06,4.0]
[1641697920641,56.4962,143.22,143.1,6.98592336]
[1641697921641,27.66479,143.21,143.11,27.66479]
[1641697921840,35.85779,143.21,143.11,27.66479]
[1641697922041,39.85779,143.21,143.07,6.98763189]
[1641697922244,1.746,143.2,143.07,6.98763189]
[1641697922442,5.746,143.2,143.07,6.98763189]
[1641697922640,1.746,143.2,143.07,6.98763189]
[1641697922841,5.746,143.2,143.07,6.98763189]
[1641697923041,1.746,143.2,143.07,10.98763189]
[1641697923241,1.746,143.2,143.07,4.0]
[1641697923441,1.746,143.2,143.09,6.98665549]
[1641697923741,35.85779,143.21,143.11,27.66479]
[1641697923941,27.66479,143.21,143.11,27.66479]
[1641697925441,12.246,143.24,143.13,4.0]
[1641697925642,27.66479,143.24,143.16,27.66479]
[1641697930947,36.23379,143.24,143.13,62.0629]
[1641697931648,27.66479,143.2,143.13,62.0629]
[1641697931848,35.22279,143.2,143.11,34.65022537]
[1641697932050,35.22279,143.2,143.11,27.66479]
[1641697932653,35.22279,143.2,143.12,2.63748032]
[1641697932850,39.22279,143.2,143.12,2.63748032]
[1641697933249,39.22279,143.2,143.11,27.66479]
[1641697933450,4.0,143.19,143.11,27.66479]
[1641697933651,35.22279,143.2,143.11,27.66479]
[1641697933652,1.746,143.18,143.11,27.66479]
[1641697933850,27.66479,143.17,143.09,58.9278]
[1641697934050,35.08979,143.17,143.09,58.9278]
[1641697935053,7.425,143.17,143.09,58.9278]
[1641697935255,1.746,143.19,143.09,58.9278]
[1641697935458,35.22279,143.2,143.09,58.9278]
[1641697935756,35.22279,143.2,143.1,27.66479]
[1641697937863,35.22279,143.2,143.07,27.66479]
[1641697938064,4.0,143.15,143.03,6.98934125]
[1641697938261,1.747,143.14,143.02,6.99007409]
[1641697938662,6.093,143.15,143.02,6.99007409]
[1641697938862,6.093,143.15,143.04,2.64460414]
[1641697939664,6.093,143.15,143.06,6.9881202]
[1641697939863,47.58879,143.2,143.08,27.66479]
[1641697940063,40.03079,143.2,143.08,27.66479]
[1641697940263,38.28479,143.2,143.08,27.66479]
[1641697940465,4.0,143.18,143.08,27.66479]
[1641697940763,12.386,143.18,143.08,27.66479]
[1641697940964,12.386,143.18,143.09,2.64460414]
[1641697941266,8.386,143.18,143.09,2.64460414]
[1641697941863,27.66479,143.16,143.09,2.64460414]
[1641697942064,31.66479,143.16,143.09,2.64460414]
[1641697942265,27.66479,143.16,143.09,2.64460414]
[1641697942866,27.66479,143.16,143.08,6.64460414]
[1641697943066,16.49344596,143.2,143.1,6.98592336]
[1641697943269,14.74744596,143.2,143.13,6.9847035]
[1641697943564,4.596e-05,143.2,143.13,13.5987035]
[1641697943765,39.24154917,143.24,143.16,6.98324022]
[1641697943966,27.66479,143.25,143.16,40.08103022]
[1641697945067,27.66479,143.25,143.17,2.64460414]
[1641697946068,27.66479,143.25,143.16,34.64803022]
[1641697947869,27.66479,143.25,143.16,27.66479]
[1641697948469,2.28064209,143.24,143.16,27.66479]
[1641697948671,9.33564209,143.24,143.16,27.66479]
[1641697949272,2.28064209,143.23,143.16,27.66479]
[1641697950374,6.28064209,143.23,143.16,27.66479]
[1641697950774,4.0,143.23,143.16,27.66479]
[1641697952478,4.0,143.23,143.14,87.03409]
[1641697953077,4.0,143.23,143.15,2.65189158]
[1641697956884,27.66479,143.25,143.15,2.65189158]
[1641697957984,2.28279033,143.24,143.15,2.65189158]
[1641697959291,2.28279033,143.24,143.17,4.0]
[1641697959493,39.24154917,143.3,143.2,10.98104646]
[1641697959688,39.24154917,143.3,143.22,6.98031551]
[1641697959888,39.24154917,143.3,143.26,27.66479]
[1641697960089,39.24154917,143.3,143.26,35.14179]
[1641697960490,87.73359,143.33,143.26,7.477]
[1641697960691,27.66479,143.33,143.26,7.477]
[1641697961093,27.66479,143.33,143.24,27.66479]
[1641697962094,4.0,143.32,143.24,27.66479]
[1641697962295,9.793,143.32,143.22,34.64510551]
[1641697962494,9.793,143.32,143.22,6.98031551]
[1641697962695,12.7759964,143.32,143.16,66.8470964]
[1641697962894,4.0,143.3,143.18,62.2163]
[1641697963300,1.745,143.31,143.18,62.2163]
[1641697963498,7.538,143.32,143.19,6.98177756]
[1641697963697,5.793,143.32,143.19,6.98177756]
[1641697963899,5.793,143.32,143.21,27.66479]
[1641697964499,4.0,143.31,143.21,27.66479]
[1641697965901,27.66479,143.3,143.21,27.66479]
[1641697968303,4.0,143.29,143.21,27.66479]
[1641697968505,10.646,143.29,143.21,27.66479]
[1641697970110,27.66479,143.27,143.21,27.66479]
[1641697972109,65.0056,143.29,143.21,27.66479]
[1641697972309,63.2606,143.29,143.21,27.66479]
[1641697977216,6.646,143.29,143.21,27.66479]
[1641697977417,27.66479,143.31,143.21,27.66479]
[1641697978016,55.32958,143.31,143.21,27.66479]
[1641697978417,59.32958,143.31,143.21,27.66479]
[1641697978617,4.0,143.29,143.19,27.66479]
[1641697978818,4.0,143.26,143.16,59.8641]
[1641697979016,4.0,143.25,143.16,59.8641]
[1641697979217,4.0,143.25,143.13,59.6432]
[1641697979417,59.8707,143.24,143.13,59.6432]
[1641697979617,59.8707,143.24,143.13,63.6432]
[1641697979818,1.745,143.25,143.14,10.98421567]
[1641697980023,1.745,143.29,143.17,6.98250882]
[1641697980218,57.0827,143.3,143.18,27.66479]
[1641697980419,14.78905905,143.25,143.18,88.44249]
[1641697981419,14.78905905,143.29,143.18,88.44249]
[1641697982119,27.66479,143.26,143.18,88.44249]
[1641697983220,27.66479,143.26,143.18,27.66479]
[1641697984822,27.66479,143.26,143.19,4.0]
[1641697985023,14.78905905,143.29,143.2,4.0]
[1641697985423,71.87175905,143.3,143.19,11.074]
[1641697985825,71.87175905,143.3,143.21,4.0]
[1641697986123,71.87175905,143.3,143.24,27.66479]
[1641697986524,57.0827,143.3,143.24,27.66479]
[1641697990529,57.0827,143.3,143.21,59.9808]
[1641697990728,64.0367,143.3,143.21,59.9808]
[1641697991128,78.82575905,143.3,143.21,59.9808]
[1641697992128,78.82575905,143.3,143.22,27.66479]
[1641697998135,27.66479,143.27,143.18,27.66479]
[1641697998335,33.94979,143.27,143.18,27.66479]
[1641697999137,48.73884905,143.27,143.18,27.66479]
[1641697999939,2.28890604,143.26,143.19,2.65934419]
[1641698001139,4.0,143.24,143.19,2.65934419]
[1641698001340,10.383,143.24,143.11,61.1344]
[1641698001740,14.78905905,143.23,143.11,61.1344]
[1641698002241,27.66479,143.21,143.12,27.66479]
[1641698002442,33.96879,143.21,143.12,27.66479]
[1641698003142,33.96879,143.21,143.12,38.05481416]
[1641698003744,6.304,143.21,143.12,38.05481416]
[1641698003943,61.7807,143.22,143.12,38.05481416]
[1641698004344,61.7807,143.22,143.15,27.66479]
[1641698005848,61.7807,143.22,143.15,31.66479]
[1641698006047,57.3229,143.26,143.16,4.0]
[1641698006248,57.3229,143.26,143.18,27.66479]
[1641698006447,57.3229,143.26,143.18,36.21379]
[1641698010952,14.78905905,143.3,143.21,4.0]
[1641698011151,71.25975905,143.3,143.21,12.16]
[1641698011552,56.4707,143.3,143.21,8.16]
[1641698012254,56.4707,143.3,143.19,14.36175207]
[1641698012453,56.4707,143.3,143.23,27.66479]
[1641698013255,56.4707,143.3,143.19,10.36175207]
[1641698013453,65.1377,143.3,143.19,10.36175207]
[1641698014454,65.1377,143.3,143.21,27.66479]
[1641698016658,4.0,143.29,143.19,10.36175207]
[1641698017058,4.0,143.27,143.19,10.36175207]
[1641698017257,5.585,143.27,143.19,10.36175207]
[1641698017658,5.585,143.27,143.18,27.66479]
[1641698018258,9.585,143.27,143.17,59.6203]
[1641698018460,9.585,143.27,143.16,60.0511]
[1641698018461,27.66479,143.24,143.16,60.0511]
[1641698018660,65.1377,143.3,143.16,60.0511]
[1641698018859,14.78905905,143.28,143.16,60.0511]
[1641698019559,14.78905905,143.29,143.16,60.0511]
[1641698020462,27.66479,143.27,143.18,27.66479]
[1641698020662,33.41179,143.27,143.18,27.66479]
[1641698022061,27.66479,143.27,143.19,6.98177756]
[1641698022264,27.66479,143.27,143.19,12.33177756]
[1641698022464,27.66479,143.27,143.21,27.66479]
[1641698023463,42.45384905,143.29,143.21,27.66479]
[1641698023668,27.66479,143.29,143.21,27.66479]
[1641698028171,27.66479,143.29,143.19,6.98177756]
[1641698028371,35.23479,143.29,143.18,27.66479]
[1641698028773,50.02384905,143.29,143.18,27.66479]
[1641698029874,35.23479,143.29,143.18,38.03418106]
[1641698030575,27.66479,143.29,143.21,27.66479]
[1641698030775,27.66479,143.29,143.21,35.13679]
[1641698031575,27.66479,143.29,143.21,39.13679]
[1641698031775,14.78905905,143.31,143.22,6.98007189]
[1641698031974,14.78905905,143.31,143.22,10.98007189]
[1641698032375,14.78905905,143.31,143.22,4.0]
[1641698032573,14.78905905,143.31,143.27,27.66479]
[1641698032774,14.78905905,143.31,143.27,34.75179]
[1641698032976,14.78905905,143.35,143.27,38.75179]
[1641698033576,14.78905905,143.35,143.27,34.75179]
[1641698033979,79.79595905,143.38,143.27,27.66479]
[1641698034377,75.79595905,143.38,143.28,4.0]
[1641698034576,75.79595905,143.38,143.31,27.66479]
[1641698036280,14.78905905,143.38,143.31,27.66479]
[1641698036481,14.78905905,143.39,143.31,31.66479]
[1641698036679,14.78905905,143.39,143.34,27.66479]
[1641698037882,14.78905905,143.42,143.34,27.66479]
[1641698038683,14.78905905,143.42,143.34,55.32958]
[1641698038885,105.67450822,143.45,143.34,55.32958]
[1641698039087,66.43295905,143.45,143.34,55.32958]
[1641698039286,4.0,143.44,143.34,55.32958]
[1641698039485,12.462,143.44,143.34,27.66479]
[1641698039686,8.462,143.44,143.34,27.66479]
[1641698039887,19.81818148,143.43,143.34,27.66479]
[1641698040087,34.60724053,143.43,143.34,27.66479]
[1641698040689,27.66479,143.41,143.34,27.66479]
[1641698042191,33.52579,143.41,143.34,27.66479]
[1641698044394,2.27187637,143.4,143.34,27.66479]
[1641698045193,27.66479,143.41,143.34,27.66479]
[1641698048797,14.78905905,143.43,143.34,62.49658]
[1641698049198,14.78905905,143.43,143.36,4.0]
[1641698049799,14.78905905,143.43,143.37,4.0]
[1641698049998,14.78905905,143.43,143.38,6.97228517]
[1641698050498,39.24154917,143.46,143.38,10.97228517]
[1641698050699,55.2265,143.5,143.45,27.66479]
[1641698050700,14.72653288,143.48,143.45,27.66479]
[1641698050901,14.72653288,143.48,143.45,33.15479]
[1641698051799,39.24154917,143.51,143.45,33.15479]
[1641698052002,2.26687055,143.53,143.45,33.15479]
[1641698052199,4.0,143.52,143.45,5.49]
[1641698052399,4.0,143.52,143.42,27.66479]
[1641698052599,12.148,143.52,143.42,27.66479]
[1641698052801,27.66479,143.49,143.42,27.66479]
[1641698054400,2.26687055,143.51,143.42,27.66479]
[1641698054702,2.26687055,143.51,143.42,34.63479]
[1641698055000,2.26687055,143.53,143.42,45.6051312]
[1641698055401,2.26687055,143.53,143.42,41.6051312]
[1641698055599,2.26687055,143.53,143.42,45.6051312]
[1641698056400,2.26687055,143.53,143.42,41.6051312]
[1641698057600,6.26687055,143.53,143.42,41.6051312]
[1641698057801,4.0,143.52,143.42,41.6051312]
[1641698058101,7.037,143.52,143.42,34.63479]
[1641698058301,2.26687055,143.51,143.42,27.66479]
[1641698058501,2.26687055,143.51,143.39,50.1954]
[1641698058901,27.66479,143.47,143.39,50.1954]
[1641698059201,27.66479,143.47,143.39,54.1954]
[1641698059402,27.66479,143.49,143.39,50.1954]
[1641698060604,27.66479,143.49,143.38,34.63731824]
[1641698060805,55.32958,143.49,143.38,34.63731824]
[1641698061006,2.26913113,143.48,143.38,27.66479]
[1641698061206,4.0,143.47,143.38,27.66479]
[1641698062106,2.26913113,143.46,143.38,27.66479]
[1641698062909,27.66479,143.44,143.38,27.66479]
[1641698064110,2.26913113,143.43,143.38,27.66479]
[1641698064910,27.66479,143.44,143.38,27.66479]
[1641698065912,27.66479,143.44,143.38,33.91079]
[1641698066112,9.33086703,143.47,143.38,33.91079]
[1641698066716,51.6884,143.48,143.38,33.91079]
[1641698067419,2.27482506,143.47,143.38,33.91079]
[1641698069422,2.27482506,143.47,143.39,4.0]
[1641698070725,2.27482506,143.47,143.4,6.97131305]
[1641698070924,2.27482506,143.47,143.41,27.66479]
[1641698071126,46.22452506,143.5,143.41,27.66479]
[1641698071924,2.27482506,143.49,143.41,27.66479]
[1641698076231,2.27482506,143.5,143.41,27.66479]
[1641698077532,2.27482506,143.5,143.41,33.48079]
[1641698079135,2.27482506,143.5,143.44,27.66479]
[1641698081939,17.07269993,143.5,143.44,27.66479]
[1641698082138,17.07269993,143.5,143.44,33.55679]
[1641698082541,14.79787487,143.49,143.44,33.55679]
[1641698084843,14.79787487,143.49,143.44,27.66479]
[1641698087048,14.79787487,143.49,143.41,74.26409]
[1641698087049,23.40187487,143.49,143.41,74.26409]
[1641698087448,23.40187487,143.49,143.41,27.66479]
[1641698087648,14.79787487,143.47,143.41,27.66479]
[1641698088048,14.79787487,143.47,143.38,125.76859]
[1641698088248,14.79787487,143.47,143.38,73.78789]
[1641698088648,14.79787487,143.46,143.38,73.78789]
[1641698091551,17.07269993,143.47,143.38,73.78789]
[1641698092552,14.79787487,143.46,143.38,73.78789]
[1641698093352,17.07269993,143.47,143.39,2.6527082]
[1641698094155,14.79787487,143.46,143.39,2.6527082]
[1641698094954,17.07269993,143.47,143.39,2.6527082]
[1641698095455,17.07269993,143.47,143.41,27.66479]
[1641698096256,17.07269993,143.47,143.39,2.6527082]
[1641698096458,28.91869993,143.47,143.39,2.6527082]
[1641698096656,23.81170257,143.46,143.39,2.6527082]
[1641698096856,23.81170257,143.46,143.31,52.96503303]
[1641698097058,4.0,143.44,143.32,44.8624]
[1641698097257,9.522,143.44,143.32,44.8624]
[1641698097457,42.46266487,143.42,143.33,27.66479]
[1641698098657,89.26134917,143.45,143.33,31.66479]
[1641698098658,14.79787487,143.41,143.33,31.66479]
[1641698098857,14.79787487,143.41,143.34,6.97447343]
[1641698099058,14.79787487,143.41,143.34,13.90547343]
[1641698099458,14.79787487,143.41,143.36,27.66479]
[1641698099661,27.66479,143.44,143.36,27.66479]
[1641698100661,60.81767487,143.45,143.36,27.66479]
[1641698101263,46.0198,143.45,143.36,27.66479]
[1641698103462,46.0198,143.45,143.36,55.32958]
[1641698104664,4.0,143.43,143.36,27.66479]
[1641698104867,12.599,143.43,143.33,1.743]
[1641698105165,4.0,143.42,143.3,47.4543]
[1641698105565,27.66479,143.4,143.31,27.66479]
[1641698105766,35.83779,143.4,143.31,27.66479]
[1641698105965,4.0,143.37,143.29,27.66479]
[1641698106165,12.676,143.37,143.26,58.78313951]
[1641698106566,4.0,143.36,143.24,47.1204]
[1641698106764,12.676,143.37,143.24,47.1204]
[1641698107164,4.0,143.36,143.24,47.1204]
[1641698107366,4.0,143.36,143.25,10.36253473]
[1641698107566,31.66479,143.36,143.25,38.02732473]
[1641698108165,31.66479,143.36,143.25,27.66479]
[1641698108966,27.66479,143.36,143.25,27.66479]
[1641698110467,31.66479,143.36,143.25,27.66479]
[1641698111871,4.0,143.35,143.25,27.66479]
[1641698112271,31.66479,143.36,143.25,27.66479]
[1641698112571,27.66479,143.36,143.25,27.66479]
[1641698113771,27.66479,143.36,143.28,27.66479]
[1641698115573,74.56399,143.39,143.28,38.52279]
[1641698115774,46.8992,143.39,143.31,27.66479]
[1641698115973,46.8992,143.39,143.31,36.11779]
[1641698116574,14.79787487,143.43,143.31,36.11779]
[1641698116876,45.3742,143.42,143.31,40.11779]
[1641698117477,45.3742,143.42,143.33,6.97471665]
[1641698117875,45.3742,143.42,143.34,27.66479]
[1641698119679,45.3742,143.42,143.34,35.68579]
[1641698120283,14.79787487,143.45,143.38,4.0]
[1641698120480,14.79787487,143.45,143.39,6.97179907]
[1641698121082,14.79787487,143.45,143.38,7.151]
[1641698121482,22.63987487,143.45,143.36,6.9735007]
[1641698121883,27.66479,143.42,143.36,6.9735007]
[1641698122282,135.1475,143.52,143.37,4.0]
[1641698122482,135.1475,143.52,143.39,6.97179907]
[1641698122685,14.79787487,143.53,143.39,6.97179907]
[1641698122884,14.79787487,143.53,143.39,10.97179907]
[1641698123086,14.79787487,143.51,143.4,4.0]
[1641698123284,14.79787487,143.51,143.4,9.623]
[1641698123483,18.79787487,143.51,143.4,5.623]
[1641698123683,14.79787487,143.51,143.4,5.623]
[1641698123885,27.66479,143.5,143.41,27.66479]
[1641698126890,27.66479,143.5,143.42,6.9703412]
[1641698127590,42.46266487,143.53,143.42,6.9703412]
[1641698127997,42.46266487,143.53,143.44,27.66479]
[1641698128392,27.66479,143.53,143.44,27.66479]
[1641698129591,27.66479,143.53,143.47,4.0]
[1641698129794,27.66479,143.53,143.47,8.45]
[1641698129993,14.79787487,143.55,143.5,4.0]
[1641698130192,39.24154917,143.59,143.52,6.96548602]
[1641698130495,14.70624685,143.58,143.54,10.96451579]
[1641698130694,39.24154917,143.61,143.57,10.96184907]
[1641698130893,39.24154917,143.61,143.58,1.741]
[1641698131091,97.85281549,143.7,143.58,1.741]
[1641698131494,97.85281549,143.7,143.58,5.741]
[1641698131693,42.7389,143.73,143.58,1.741]
[1641698131894,27.66479,143.72,143.65,27.66479]
[1641698134594,4.0,143.7,143.65,27.66479]
[1641698134795,4.0,143.69,143.65,27.66479]
[1641698134995,4.0,143.69,143.56,6.96354584]
[1641698135195,4.0,143.67,143.56,6.96354584]
[1641698135396,4.0,143.68,143.56,6.96354584]
[1641698135598,10.419,143.69,143.56,6.96354584]
[1641698135998,27.66479,143.67,143.58,27.66479]
[1641698136400,27.66479,143.67,143.54,46.0725]
[1641698136600,4.0,143.63,143.54,46.0725]
[1641698136798,6.481,143.63,143.54,46.0725]
[1641698137198,6.481,143.63,143.54,53.03701579]
[1641698137598,6.481,143.63,143.54,6.96451579]
[1641698138001,27.66479,143.64,143.56,27.66479]
[1641698138201,27.66479,143.64,143.56,35.01679]
[1641698138400,27.66479,143.67,143.56,35.01679]
[1641698139301,4.0,143.76,143.64,6.95966872]
[1641698139503,14.28,143.77,143.64,13.58966872]
[1641698139701,10.28,143.77,143.64,6.63]
[1641698139901,10.28,143.77,143.67,6.95821591]
[1641698140101,4.0,143.75,143.67,35.26979]
[1641698140302,31.66479,143.77,143.67,35.26979]
[1641698140500,27.66479,143.77,143.67,35.26979]
[1641698140702,31.66479,143.77,143.67,35.26979]
[1641698141101,4.0,143.76,143.67,35.26979]
[1641698141501,31.66479,143.77,143.67,35.26979]
[1641698142102,27.66479,143.73,143.67,35.26979]
[1641698144102,27.66479,143.77,143.67,35.26979]
[1641698145203,27.66479,143.77,143.67,39.26979]
[1641698146103,27.66479,143.77,143.67,66.93458]
[1641698147004,27.66479,143.77,143.67,62.93458]
[1641698147203,27.66479,143.77,143.68,4.0]
[1641698147402,27.66479,143.77,143.67,68.67358]
[1641698148404,27.66479,143.77,143.68,6.95773178]
[1641698148603,27.66479,143.77,143.68,10.95773178]
[1641698148803,27.66479,143.77,143.68,6.95773178]
[1641698150205,27.66479,143.77,143.7,27.66479]